[Event "Late-Titled-Tuesday-Blitz-May-07-2024"]
[Site "Chess.com"]
[Date "2024.05.07"]
[Round "5"]
[White "zverr1"]
[Black "ploxoi"]
[Result "1-0"]
[WhiteElo "2507"]
[BlackElo "2343"]
[TimeControl "180+1"]
[EndTime "14:56:18 PDT"]
[Termination "zverr1 won by resignation"]

1. e4 {[%clk 0:02:55.7]} 1... c6 {[%clk 0:02:57.1]} 2. b3 {[%clk 0:02:50.9]}
2... d5 {[%clk 0:02:56.6]} 3. Bb2 {[%clk 0:02:51.4]} 3... dxe4 {[%clk
0:02:54.3]} 4. Nc3 {[%clk 0:02:52.1]} 4... Nf6 {[%clk 0:02:54.3]} 5. Nge2 {[%clk
0:02:52]} 5... Bf5 {[%clk 0:02:53.6]} 6. Ng3 {[%clk 0:02:52.3]} 6... Bg6 {[%clk
0:02:54.3]} 7. Qe2 {[%clk 0:02:50.7]} 7... e6 {[%clk 0:02:48.9]} 8. O-O-O {[%clk
0:02:48.4]} 8... Qc7 {[%clk 0:02:47]} 9. Ncxe4 {[%clk 0:02:47.8]} 9... Nxe4
{[%clk 0:02:43.3]} 10. Nxe4 {[%clk 0:02:47.8]} 10... Nd7 {[%clk 0:02:40.3]} 11.
h4 {[%clk 0:02:46.6]} 11... O-O-O {[%clk 0:02:30.8]} 12. h5 {[%clk 0:02:41.5]}
12... Bf5 {[%clk 0:02:30.7]} 13. Ng5 {[%clk 0:02:37.9]} 13... Nf6 {[%clk
0:02:21.8]} 14. f3 {[%clk 0:02:05.9]} 14... Nd5 {[%clk 0:02:03.7]} 15. g4 {[%clk
0:01:42.8]} 15... h6 {[%clk 0:01:56.9]} 16. gxf5 {[%clk 0:01:39]} 16... hxg5
{[%clk 0:01:56.1]} 17. fxe6 {[%clk 0:01:39.3]} 17... Nf4 {[%clk 0:01:45.3]} 18.
Qe3 {[%clk 0:01:37.3]} 18... Nxe6 {[%clk 0:01:44.6]} 19. Qxa7 {[%clk 0:01:34.1]}
19... Bc5 {[%clk 0:01:39]} 20. Qa8+ {[%clk 0:01:19.9]} 20... Kd7 {[%clk
0:01:38.9]} 21. Qa4 {[%clk 0:01:17.1]} 21... Ra8 {[%clk 0:01:32.1]} 22. Qe4
{[%clk 0:01:07.1]} 22... Rxa2 {[%clk 0:01:17.4]} 23. d4 {[%clk 0:01:05]} 23...
Ba3 {[%clk 0:01:05.7]} 24. Bxa3 {[%clk 0:01:01.4]} 24... Rxa3 {[%clk 0:01:06.6]}
25. d5 {[%clk 0:00:58.1]} 25... cxd5 {[%clk 0:00:57.3]} 26. Rxd5+ {[%clk
0:00:45.8]} 26... Ke7 {[%clk 0:00:54.8]} 27. Qb4+ {[%clk 0:00:44.1]} 27... Kf6
{[%clk 0:00:51.5]} 28. Qxa3 {[%clk 0:00:37.4]} 28... Qf4+ {[%clk 0:00:49]} 29.
Rd2 {[%clk 0:00:29.1]} 29... Rd8 {[%clk 0:00:37.6]} 30. Bd3 {[%clk 0:00:28.9]}
30... Nd4 {[%clk 0:00:12.4]} 31. Qa5 {[%clk 0:00:08.3]} 31... Rc8 {[%clk
0:00:08.6]} 32. Qb6+ {[%clk 0:00:07.3]} 32... Ke7 {[%clk 0:00:08.8]} 33. Qxb7+
{[%clk 0:00:06.4]} 33... Rc7 {[%clk 0:00:04.9]} 34. Qe4+ {[%clk 0:00:06.9]}
34... Qxe4 {[%clk 0:00:04.1]} 35. Bxe4 {[%clk 0:00:06.7]} 35... Nxb3+ {[%clk
0:00:04.4]} 36. Kd1 {[%clk 0:00:07.5]} 36... Nxd2 {[%clk 0:00:04.8]} 37. Kxd2
{[%clk 0:00:08.4]} 37... Rd7+ {[%clk 0:00:05.3]} 38. Bd3 {[%clk 0:00:08.4]}
38... Kf6 {[%clk 0:00:05.9]} 39. h6 {[%clk 0:00:08.2]} 39... gxh6 {[%clk
0:00:05.5]} 40. Rxh6+ {[%clk 0:00:09.1]} 40... Ke5 {[%clk 0:00:05.8]} 41. Ke3
{[%clk 0:00:08.9]} 41... Rc7 {[%clk 0:00:05.3]} 42. c4 {[%clk 0:00:09]} 42... f5
{[%clk 0:00:05.2]} 43. Ra6 {[%clk 0:00:08.1]} 43... f4+ {[%clk 0:00:03.5]} 44.
Kd2 {[%clk 0:00:08.3]} 44... Kd4 {[%clk 0:00:03.6]} 45. Rd6+ {[%clk 0:00:08.6]}
45... Ke5 {[%clk 0:00:04.1]} 46. Rd5+ {[%clk 0:00:09.3]} 46... Kf6 {[%clk
0:00:03.9]} 47. Rf5+ {[%clk 0:00:10]} 47... Ke6 {[%clk 0:00:04.4]} 48. Rxg5
{[%clk 0:00:10.5]} 48... Rb7 {[%clk 0:00:05.2]} 49. Kc3 {[%clk 0:00:09.6]} 1-0

[Event "Late-Titled-Tuesday-Blitz-May-07-2024"]
[Site "Chess.com"]
[Date "2024.05.07"]
[Round "5"]
[White "Akhayan"]
[Black "SoCalJuniorChess"]
[Result "1-0"]
[WhiteElo "2413"]
[BlackElo "2179"]
[TimeControl "180+1"]
[EndTime "14:56:21 PDT"]
[Termination "Akhayan won by resignation"]

1. e4 {[%clk 0:03:00.9]} 1... d5 {[%clk 0:02:59.3]} 2. exd5 {[%clk 0:03:00.3]}
2... Qxd5 {[%clk 0:03:00.2]} 3. Nc3 {[%clk 0:03:00.3]} 3... Qd8 {[%clk
0:03:00.3]} 4. d4 {[%clk 0:03:00.5]} 4... Nf6 {[%clk 0:03:00.4]} 5. Nf3 {[%clk
0:03:01]} 5... Bg4 {[%clk 0:03:00]} 6. h3 {[%clk 0:02:59.9]} 6... Bxf3 {[%clk
0:02:59.8]} 7. Qxf3 {[%clk 0:03:00.5]} 7... c6 {[%clk 0:03:00.2]} 8. Bg5 {[%clk
0:02:59.1]} 8... Qxd4 {[%clk 0:02:55.8]} 9. Be2 {[%clk 0:02:51.6]} 9... e6
{[%clk 0:02:45.5]} 10. O-O {[%clk 0:02:51.8]} 10... Be7 {[%clk 0:02:41.8]} 11.
Rad1 {[%clk 0:02:52.3]} 11... Qb6 {[%clk 0:02:39.5]} 12. Bxf6 {[%clk 0:02:46.7]}
12... Bxf6 {[%clk 0:02:38.4]} 13. Ne4 {[%clk 0:02:47.1]} 13... Be7 {[%clk
0:02:27.7]} 14. Bd3 {[%clk 0:02:43.4]} 14... Nd7 {[%clk 0:02:22.2]} 15. b3
{[%clk 0:02:40.7]} 15... Ne5 {[%clk 0:02:21.6]} 16. Qe2 {[%clk 0:02:40.7]} 16...
Nxd3 {[%clk 0:02:20.5]} 17. Rxd3 {[%clk 0:02:41.3]} 17... Rd8 {[%clk 0:02:12.8]}
18. Rxd8+ {[%clk 0:02:40.5]} 18... Qxd8 {[%clk 0:02:08]} 19. Rd1 {[%clk
0:02:41]} 19... Qa5 {[%clk 0:02:07.2]} 20. Qg4 {[%clk 0:02:21.9]} 20... Qe5
{[%clk 0:01:58.6]} 21. Ng3 {[%clk 0:02:09.3]} 21... Bd6 {[%clk 0:01:46.8]} 22.
Qh5 {[%clk 0:01:33.1]} 22... Qxh5 {[%clk 0:01:33]} 23. Nxh5 {[%clk 0:01:33.3]}
23... Be5 {[%clk 0:01:32.8]} 24. f4 {[%clk 0:01:27.6]} 24... Bb2 {[%clk
0:01:25.9]} 25. Kf2 {[%clk 0:01:16.9]} 25... Ke7 {[%clk 0:01:24.2]} 26. Ke2
{[%clk 0:01:10.6]} 26... Rd8 {[%clk 0:01:22]} 27. Rxd8 {[%clk 0:01:05.6]} 27...
Kxd8 {[%clk 0:01:22.9]} 28. Kd3 {[%clk 0:01:06]} 28... g6 {[%clk 0:01:22]} 29.
Ng3 {[%clk 0:01:05.5]} 29... e5 {[%clk 0:01:20.2]} 30. f5 {[%clk 0:01:04.2]}
30... Bc1 {[%clk 0:01:13.6]} 31. Ke4 {[%clk 0:01:03.6]} 31... Bf4 {[%clk
0:01:09.6]} 32. Ne2 {[%clk 0:01:04.1]} 32... g5 {[%clk 0:00:52.9]} 33. g3 {[%clk
0:01:01.5]} 33... Bd2 {[%clk 0:00:46.4]} 34. Kxe5 {[%clk 0:01:01.9]} 34... Ke7
{[%clk 0:00:47]} 35. f6+ {[%clk 0:00:57.7]} 35... Kd7 {[%clk 0:00:46.8]} 36. g4
{[%clk 0:00:56.5]} 36... b5 {[%clk 0:00:30.6]} 37. Kf5 {[%clk 0:00:51.2]} 37...
Kd6 {[%clk 0:00:29.2]} 38. Ng3 {[%clk 0:00:51.4]} 38... Kd5 {[%clk 0:00:25.5]}
39. Ne4 {[%clk 0:00:51.6]} 39... Be3 {[%clk 0:00:25.4]} 40. Nxg5 {[%clk
0:00:48.9]} 40... Bxg5 {[%clk 0:00:17.7]} 41. Kxg5 {[%clk 0:00:49.2]} 41... Ke5
{[%clk 0:00:18.6]} 42. h4 {[%clk 0:00:41.7]} 42... c5 {[%clk 0:00:18.6]} 43. h5
{[%clk 0:00:40.9]} 43... a5 {[%clk 0:00:18]} 44. Kh6 {[%clk 0:00:29.2]} 44...
Kxf6 {[%clk 0:00:17.2]} 45. Kxh7 {[%clk 0:00:29.6]} 45... Kg5 {[%clk 0:00:10]}
46. Kg7 {[%clk 0:00:29.9]} 46... Kxg4 {[%clk 0:00:06.5]} 47. h6 {[%clk
0:00:30.2]} 47... f5 {[%clk 0:00:07.1]} 48. h7 {[%clk 0:00:30.6]} 48... f4
{[%clk 0:00:07.7]} 49. h8=Q {[%clk 0:00:31]} 49... f3 {[%clk 0:00:08.5]} 50.
Qc8+ {[%clk 0:00:30.1]} 50... Kg3 {[%clk 0:00:08.5]} 51. Qc7+ {[%clk 0:00:30.2]}
51... Kg2 {[%clk 0:00:08.3]} 52. Qc6 {[%clk 0:00:30.3]} 52... Kg3 {[%clk
0:00:05.2]} 53. Qg6+ {[%clk 0:00:29.9]} 53... Kf2 {[%clk 0:00:05.2]} 54. Kf6
{[%clk 0:00:28.5]} 54... Ke2 {[%clk 0:00:05.4]} 55. Qe4+ {[%clk 0:00:28.3]}
55... Kf2 {[%clk 0:00:05]} 56. Kf5 {[%clk 0:00:28.6]} 56... Kg3 {[%clk
0:00:04.6]} 57. Qf4+ {[%clk 0:00:28.1]} 1-0

[Event "Late-Titled-Tuesday-Blitz-May-07-2024"]
[Site "Chess.com"]
[Date "2024.05.07"]
[Round "5"]
[White "Rodalquilar"]
[Black "m_ezat"]
[Result "1-0"]
[WhiteElo "2769"]
[BlackElo "2572"]
[TimeControl "180+1"]
[EndTime "14:56:27 PDT"]
[Termination "Rodalquilar won by checkmate"]

1. d4 {[%clk 0:03:00.9]} 1... Nf6 {[%clk 0:02:56.1]} 2. Nf3 {[%clk 0:03:01.1]}
2... g6 {[%clk 0:02:52.5]} 3. Bf4 {[%clk 0:03:01.3]} 3... Bg7 {[%clk 0:02:51.5]}
4. e3 {[%clk 0:03:01.9]} 4... O-O {[%clk 0:02:51.1]} 5. Be2 {[%clk 0:03:02.6]}
5... d6 {[%clk 0:02:51.7]} 6. O-O {[%clk 0:03:03]} 6... Nfd7 {[%clk 0:02:51.4]}
7. e4 {[%clk 0:03:02.8]} 7... e5 {[%clk 0:02:47.7]} 8. Bg5 {[%clk 0:03:03.2]}
8... Qe8 {[%clk 0:02:43.8]} 9. Nc3 {[%clk 0:03:03]} 9... c6 {[%clk 0:02:42.1]}
10. dxe5 {[%clk 0:03:02.6]} 10... dxe5 {[%clk 0:02:41.2]} 11. Qd6 {[%clk
0:03:01.9]} 11... f6 {[%clk 0:02:35.8]} 12. Bc4+ {[%clk 0:03:02.1]} 12... Kh8
{[%clk 0:02:34.9]} 13. Be3 {[%clk 0:03:02.4]} 13... Nb6 {[%clk 0:02:31.2]} 14.
Bb3 {[%clk 0:03:02.8]} 14... Bg4 {[%clk 0:02:29.2]} 15. a4 {[%clk 0:02:48.8]}
15... Na6 {[%clk 0:02:25.8]} 16. a5 {[%clk 0:02:20.8]} 16... Rd8 {[%clk
0:02:00.2]} 17. Qa3 {[%clk 0:02:21]} 17... Nc8 {[%clk 0:01:57.4]} 18. Rfd1
{[%clk 0:02:18.9]} 18... Rxd1+ {[%clk 0:01:36]} 19. Rxd1 {[%clk 0:02:18.7]}
19... Be6 {[%clk 0:01:35.8]} 20. Na4 {[%clk 0:01:55.2]} 20... Rg8 {[%clk
0:01:33.3]} 21. Nc5 {[%clk 0:01:33.8]} 21... Nxc5 {[%clk 0:01:20.8]} 22. Bxc5
{[%clk 0:01:34.7]} 22... b6 {[%clk 0:01:20.3]} 23. axb6 {[%clk 0:01:31.7]} 23...
axb6 {[%clk 0:01:19.9]} 24. Be3 {[%clk 0:01:32]} 24... Bf8 {[%clk 0:01:17]} 25.
Qa2 {[%clk 0:01:31.8]} 25... Bxb3 {[%clk 0:01:16.5]} 26. Qxb3 {[%clk 0:01:32.7]}
26... Nd6 {[%clk 0:01:13]} 27. Qxb6 {[%clk 0:01:16.4]} 27... Nxe4 {[%clk
0:01:03.6]} 28. Qc7 {[%clk 0:00:51.8]} 28... Rg7 {[%clk 0:00:53.5]} 29. Qd8
{[%clk 0:00:51.6]} 29... Qxd8 {[%clk 0:00:52.4]} 30. Rxd8 {[%clk 0:00:51.7]}
30... Rg8 {[%clk 0:00:52.9]} 31. Rc8 {[%clk 0:00:44.9]} 31... c5 {[%clk
0:00:43.7]} 32. Ne1 {[%clk 0:00:37]} 32... c4 {[%clk 0:00:38.6]} 33. Rxc4 {[%clk
0:00:35.3]} 33... Nd6 {[%clk 0:00:38]} 34. Rc6 {[%clk 0:00:35.5]} 34... Be7
{[%clk 0:00:34.3]} 35. Nd3 {[%clk 0:00:32.6]} 35... Rd8 {[%clk 0:00:34.1]} 36.
f3 {[%clk 0:00:26.7]} 36... Kg8 {[%clk 0:00:31]} 37. Rc7 {[%clk 0:00:23.2]}
37... Kf8 {[%clk 0:00:27.4]} 38. Bc5 {[%clk 0:00:21.8]} 38... Nf5 {[%clk
0:00:26.4]} 39. Bxe7+ {[%clk 0:00:20.4]} 39... Nxe7 {[%clk 0:00:26.6]} 40. b4
{[%clk 0:00:20.4]} 40... h5 {[%clk 0:00:22.9]} 41. b5 {[%clk 0:00:19.1]} 41...
Nd5 {[%clk 0:00:22.8]} 42. Rh7 {[%clk 0:00:13.1]} 42... Rd6 {[%clk 0:00:20.1]}
43. Nc5 {[%clk 0:00:09]} 43... Nc3 {[%clk 0:00:15.9]} 44. b6 {[%clk 0:00:07.5]}
44... Rd1+ {[%clk 0:00:14.2]} 45. Kf2 {[%clk 0:00:07.9]} 45... Rb1 {[%clk
0:00:14.8]} 46. b7 {[%clk 0:00:07.2]} 46... Kg8 {[%clk 0:00:13.2]} 47. Rc7
{[%clk 0:00:05.5]} 47... Nd5 {[%clk 0:00:12.3]} 48. Rc8+ {[%clk 0:00:05.8]}
48... Kf7 {[%clk 0:00:12.7]} 49. b8=Q {[%clk 0:00:06.7]} 49... Rxb8 {[%clk
0:00:11.8]} 50. Rxb8 {[%clk 0:00:07.3]} 50... Nf4 {[%clk 0:00:12.3]} 51. Rb7+
{[%clk 0:00:07.7]} 51... Kf8 {[%clk 0:00:12.4]} 52. g3 {[%clk 0:00:07.9]} 52...
Nd5 {[%clk 0:00:12]} 53. c4 {[%clk 0:00:08.4]} 53... Kg8 {[%clk 0:00:12.8]} 54.
cxd5 {[%clk 0:00:08.4]} 54... Kf8 {[%clk 0:00:12.8]} 55. d6 {[%clk 0:00:08.7]}
55... Ke8 {[%clk 0:00:13.5]} 56. Ne6 {[%clk 0:00:09.1]} 56... f5 {[%clk
0:00:12.8]} 57. Re7# {[%clk 0:00:10]} 1-0

[Event "Late-Titled-Tuesday-Blitz-May-07-2024"]
[Site "Chess.com"]
[Date "2024.05.07"]
[Round "5"]
[White "Revan_2002"]
[Black "Harsha_Bharathakoti"]
[Result "1-0"]
[WhiteElo "2739"]
[BlackElo "2936"]
[TimeControl "180+1"]
[EndTime "14:56:32 PDT"]
[Termination "Revan_2002 won by resignation"]

1. Nf3 {[%clk 0:02:39.2]} 1... g6 {[%clk 0:02:58.1]} 2. d4 {[%clk 0:02:34.8]}
2... Bg7 {[%clk 0:02:57.7]} 3. c4 {[%clk 0:02:35.4]} 3... d6 {[%clk 0:02:56.3]}
4. Nc3 {[%clk 0:02:35.9]} 4... e5 {[%clk 0:02:55.1]} 5. e3 {[%clk 0:02:21.7]}
5... Nc6 {[%clk 0:02:48.4]} 6. Be2 {[%clk 0:02:11.3]} 6... exd4 {[%clk 0:02:38]}
7. exd4 {[%clk 0:02:04.7]} 7... Bg4 {[%clk 0:02:38]} 8. d5 {[%clk 0:02:03.7]}
8... Bxf3 {[%clk 0:02:37.3]} 9. Bxf3 {[%clk 0:02:03.2]} 9... Ne5 {[%clk
0:02:28.8]} 10. O-O {[%clk 0:02:02.5]} 10... Ne7 {[%clk 0:02:28]} 11. Bg5 {[%clk
0:01:56.9]} 11... O-O {[%clk 0:02:26.4]} 12. Be2 {[%clk 0:01:54.5]} 12... h6
{[%clk 0:02:25.2]} 13. Bh4 {[%clk 0:01:51.2]} 13... f5 {[%clk 0:02:14.2]} 14. f4
{[%clk 0:01:48.4]} 14... Nf7 {[%clk 0:01:59.9]} 15. Bd3 {[%clk 0:01:45.8]} 15...
Re8 {[%clk 0:01:58]} 16. Re1 {[%clk 0:01:43.2]} 16... Qd7 {[%clk 0:01:57.7]} 17.
Kh1 {[%clk 0:01:28.6]} 17... Kh7 {[%clk 0:01:52]} 18. Qb3 {[%clk 0:01:03.3]}
18... c6 {[%clk 0:01:37.1]} 19. Re2 {[%clk 0:00:49.9]} 19... Ng8 {[%clk
0:01:29.4]} 20. Rae1 {[%clk 0:00:43.3]} 20... Rxe2 {[%clk 0:01:30]} 21. Rxe2
{[%clk 0:00:43.6]} 21... c5 {[%clk 0:01:29.7]} 22. Re6 {[%clk 0:00:33.1]} 22...
Re8 {[%clk 0:01:12.6]} 23. Qb5 {[%clk 0:00:32.7]} 23... Qxb5 {[%clk 0:01:01.6]}
24. Nxb5 {[%clk 0:00:33.6]} 24... Rc8 {[%clk 0:00:29.7]} 25. Nxd6 {[%clk
0:00:24.2]} 25... Nxd6 {[%clk 0:00:30.2]} 26. Rxd6 {[%clk 0:00:25.1]} 26... Bxb2
{[%clk 0:00:26.3]} 27. Rd7+ {[%clk 0:00:23.3]} 27... Kh8 {[%clk 0:00:26.7]} 28.
Rxb7 {[%clk 0:00:23.2]} 28... Bf6 {[%clk 0:00:21.2]} 29. Bf2 {[%clk 0:00:22.7]}
29... Bd4 {[%clk 0:00:11.6]} 30. Kg1 {[%clk 0:00:09.3]} 30... Nf6 {[%clk
0:00:09.8]} 31. h3 {[%clk 0:00:06.1]} 31... Nh5 {[%clk 0:00:03.8]} 32. g3 {[%clk
0:00:02.8]} 32... Nxg3 {[%clk 0:00:02.9]} 33. Bxd4+ {[%clk 0:00:03.4]} 33...
cxd4 {[%clk 0:00:03.8]} 34. d6 {[%clk 0:00:04.1]} 34... Nh5 {[%clk 0:00:02.4]}
35. d7 {[%clk 0:00:04]} 35... Rd8 {[%clk 0:00:02.5]} 36. c5 {[%clk 0:00:04.5]}
36... Nf6 {[%clk 0:00:02.1]} 37. c6 {[%clk 0:00:04.6]} 37... Nd5 {[%clk
0:00:02.2]} 38. c7 {[%clk 0:00:04]} 38... Nxc7 {[%clk 0:00:02.3]} 39. Rxc7
{[%clk 0:00:04.9]} 39... Kg7 {[%clk 0:00:02.9]} 40. Bb5 {[%clk 0:00:04.5]} 40...
Kf6 {[%clk 0:00:03.4]} 41. Rc8 {[%clk 0:00:04.3]} 41... Ke7 {[%clk 0:00:04.3]}
42. Rxd8 {[%clk 0:00:04.5]} 42... Kxd8 {[%clk 0:00:05.2]} 43. Kf2 {[%clk
0:00:04.9]} 43... g5 {[%clk 0:00:06]} 44. Kf3 {[%clk 0:00:04.8]} 44... a5 {[%clk
0:00:05.1]} 45. a4 {[%clk 0:00:03.9]} 45... Ke7 {[%clk 0:00:05]} 46. Bd3 {[%clk
0:00:03.3]} 46... Kxd7 {[%clk 0:00:05.1]} 47. Bxf5+ {[%clk 0:00:03.4]} 47... Kd6
{[%clk 0:00:05.9]} 48. fxg5 {[%clk 0:00:03.4]} 48... hxg5 {[%clk 0:00:06.7]} 49.
Kg4 {[%clk 0:00:03.5]} 49... Kc5 {[%clk 0:00:06]} 50. Kxg5 {[%clk 0:00:03.6]}
50... Kb4 {[%clk 0:00:06.9]} 51. h4 {[%clk 0:00:03.5]} 51... Kxa4 {[%clk
0:00:07.8]} 52. h5 {[%clk 0:00:04]} 52... Kb3 {[%clk 0:00:07.3]} 53. h6 {[%clk
0:00:04]} 53... a4 {[%clk 0:00:08.2]} 54. h7 {[%clk 0:00:04.4]} 54... a3 {[%clk
0:00:09.1]} 55. h8=Q {[%clk 0:00:04.6]} 55... Kc3 {[%clk 0:00:09.1]} 56. Qc8+
{[%clk 0:00:04.1]} 1-0

[Event "Late-Titled-Tuesday-Blitz-May-07-2024"]
[Site "Chess.com"]
[Date "2024.05.07"]
[Round "5"]
[White "Arek_pacitan"]
[Black "Szparu"]
[Result "1-0"]
[WhiteElo "2738"]
[BlackElo "2907"]
[TimeControl "180+1"]
[EndTime "14:56:37 PDT"]
[Termination "Arek_pacitan won by checkmate"]

1. d4 {[%clk 0:02:57.8]} 1... d5 {[%clk 0:02:55.8]} 2. c4 {[%clk 0:02:57.2]}
2... c6 {[%clk 0:02:55.3]} 3. cxd5 {[%clk 0:02:55.4]} 3... cxd5 {[%clk
0:02:56.2]} 4. Nc3 {[%clk 0:02:56]} 4... Nc6 {[%clk 0:02:56.5]} 5. e4 {[%clk
0:02:56.3]} 5... Nf6 {[%clk 0:02:56.7]} 6. e5 {[%clk 0:02:55.8]} 6... Ne4 {[%clk
0:02:57.2]} 7. Nf3 {[%clk 0:02:47.2]} 7... Bf5 {[%clk 0:02:55.1]} 8. Bb5 {[%clk
0:02:47.8]} 8... e6 {[%clk 0:02:53]} 9. O-O {[%clk 0:02:47.4]} 9... Be7 {[%clk
0:02:52.4]} 10. Be3 {[%clk 0:02:38.7]} 10... O-O {[%clk 0:02:45.8]} 11. h3
{[%clk 0:02:38.1]} 11... Nxc3 {[%clk 0:02:45.6]} 12. bxc3 {[%clk 0:02:39]} 12...
Rc8 {[%clk 0:02:46.1]} 13. Nd2 {[%clk 0:02:26.1]} 13... Qa5 {[%clk 0:02:45.9]}
14. c4 {[%clk 0:02:18.6]} 14... dxc4 {[%clk 0:02:41.5]} 15. Bxc4 {[%clk
0:02:15.6]} 15... Rfd8 {[%clk 0:02:39.6]} 16. Nb3 {[%clk 0:02:10.4]} 16... Qa4
{[%clk 0:02:29.2]} 17. Qe2 {[%clk 0:02:09.9]} 17... a6 {[%clk 0:01:58.7]} 18.
Nc5 {[%clk 0:01:38]} 18... Bxc5 {[%clk 0:01:46.7]} 19. dxc5 {[%clk 0:01:38.9]}
19... Nd4 {[%clk 0:01:36.6]} 20. Bxd4 {[%clk 0:01:30.5]} 20... Rxd4 {[%clk
0:01:37.5]} 21. Rac1 {[%clk 0:01:23.7]} 21... Rxc5 {[%clk 0:01:30.8]} 22. Bb3
{[%clk 0:01:20.9]} 22... Qa3 {[%clk 0:01:28.9]} 23. Qe3 {[%clk 0:01:15.8]} 23...
Rxc1 {[%clk 0:01:20.8]} 24. Rxc1 {[%clk 0:01:16.7]} 24... Rd8 {[%clk 0:01:15.6]}
25. Rc7 {[%clk 0:01:16.4]} 25... h6 {[%clk 0:01:04.9]} 26. Bxe6 {[%clk
0:01:06.3]} 26... Rd1+ {[%clk 0:00:32.8]} 27. Kh2 {[%clk 0:01:05.6]} 27... Qxe3
{[%clk 0:00:31.1]} 28. Rc8+ {[%clk 0:01:05.7]} 28... Kh7 {[%clk 0:00:27.6]} 29.
Bxf5+ {[%clk 0:01:05.7]} 29... g6 {[%clk 0:00:27.1]} 30. fxe3 {[%clk 0:00:56.9]}
30... gxf5 {[%clk 0:00:27.2]} 31. Rc7 {[%clk 0:00:57.8]} 31... Kg6 {[%clk
0:00:20.2]} 32. Rxb7 {[%clk 0:00:57.8]} 32... Rd5 {[%clk 0:00:19.8]} 33. Rb6+
{[%clk 0:00:56.2]} 33... Kg7 {[%clk 0:00:15.1]} 34. Rxa6 {[%clk 0:00:52.1]}
34... Rxe5 {[%clk 0:00:15.3]} 35. Ra3 {[%clk 0:00:52.7]} 35... Re4 {[%clk
0:00:14]} 36. Kg3 {[%clk 0:00:52]} 36... Kg6 {[%clk 0:00:13.8]} 37. Kf3 {[%clk
0:00:52.5]} 37... h5 {[%clk 0:00:14.1]} 38. Ra6+ {[%clk 0:00:52.4]} 38... f6
{[%clk 0:00:14.4]} 39. a4 {[%clk 0:00:51.9]} 39... Kg5 {[%clk 0:00:13.1]} 40.
Ra8 {[%clk 0:00:51]} 40... Rb4 {[%clk 0:00:12.2]} 41. a5 {[%clk 0:00:46.6]}
41... Ra4 {[%clk 0:00:11.8]} 42. a6 {[%clk 0:00:46.8]} 42... Kg6 {[%clk
0:00:10.9]} 43. g3 {[%clk 0:00:39.6]} 43... h4 {[%clk 0:00:08.4]} 44. a7 {[%clk
0:00:36.5]} 44... Kg7 {[%clk 0:00:07.8]} 45. gxh4 {[%clk 0:00:37]} 45... Kh7
{[%clk 0:00:07.2]} 46. h5 {[%clk 0:00:37.2]} 46... Kg7 {[%clk 0:00:07.2]} 47.
h6+ {[%clk 0:00:37.1]} 47... Kh7 {[%clk 0:00:07.7]} 48. h4 {[%clk 0:00:35.5]}
48... Ra3 {[%clk 0:00:05.2]} 49. Kf4 {[%clk 0:00:35.3]} 49... Ra5 {[%clk
0:00:05.2]} 50. h5 {[%clk 0:00:34.2]} 50... Ra3 {[%clk 0:00:02.6]} 51. Kxf5
{[%clk 0:00:33.9]} 51... Ra6 {[%clk 0:00:03.2]} 52. e4 {[%clk 0:00:32.9]} 52...
Ra5+ {[%clk 0:00:01.6]} 53. Kxf6 {[%clk 0:00:33.2]} 53... Ra6+ {[%clk
0:00:01.9]} 54. Kf5 {[%clk 0:00:33.8]} 54... Ra5+ {[%clk 0:00:02.4]} 55. e5
{[%clk 0:00:34.3]} 55... Ra6 {[%clk 0:00:03]} 56. e6 {[%clk 0:00:30.7]} 56...
Ra1 {[%clk 0:00:02.4]} 57. e7 {[%clk 0:00:29.8]} 57... Ra2 {[%clk 0:00:02.2]}
58. Rh8+ {[%clk 0:00:28]} 58... Kxh8 {[%clk 0:00:01.9]} 59. e8=Q+ {[%clk
0:00:28.6]} 59... Kh7 {[%clk 0:00:02.5]} 60. Qg6+ {[%clk 0:00:29.1]} 60... Kh8
{[%clk 0:00:03.4]} 61. Qg7# {[%clk 0:00:30]} 1-0